[Event "*** Titled Tuesday Blitz"]
[Site "Chess.com"]
[Date "2019.01.01"]
[Round "8"]
[White "MatthewG-p4p"]
[Black "Rashad_Zeynalli"]
[Result "1-0"]
[WhiteElo "2637"]
[BlackElo "2425"]
[TimeControl "180+2"]
[EndTime "14:55:15 PST"]
[Termination "MatthewG-p4p won by resignation"]

1. f4 {[%clk 0:03:00.7]} 1... Nf6 {[%clk 0:02:53.7]} 2. Nf3 {[%clk 0:03:01.5]}
2... g6 {[%clk 0:02:54.9]} 3. g3 {[%clk 0:03:03.1]} 3... Bg7 {[%clk 0:02:56.3]}
4. Bg2 {[%clk 0:03:04.8]} 4... O-O {[%clk 0:02:57.8]} 5. O-O {[%clk 0:03:06.5]}
5... d6 {[%clk 0:02:53.7]} 6. d3 {[%clk 0:03:07.7]} 6... e5 {[%clk 0:02:53.4]}
7. Nc3 {[%clk 0:03:09.3]} 7... Nc6 {[%clk 0:02:50.8]} 8. e4 {[%clk 0:03:08.5]}
8... exf4 {[%clk 0:02:44.3]} 9. Bxf4 {[%clk 0:03:10.4]} 9... Nh5 {[%clk
0:02:44.6]} 10. Bg5 {[%clk 0:03:05.4]} 10... f6 {[%clk 0:02:44.9]} 11. Be3
{[%clk 0:03:04.3]} 11... Ne5 {[%clk 0:02:43.7]} 12. Nxe5 {[%clk 0:02:53]} 12...
fxe5 {[%clk 0:02:41.5]} 13. Rxf8+ {[%clk 0:02:54.1]} 13... Qxf8 {[%clk
0:02:40.1]} 14. Nd5 {[%clk 0:02:52.9]} 14... Qd8 {[%clk 0:02:31]} 15. Qd2 {[%clk
0:02:52.2]} 15... c6 {[%clk 0:02:28.2]} 16. Bg5 {[%clk 0:02:51.9]} 16... Nf6
{[%clk 0:02:27.5]} 17. Nc3 {[%clk 0:02:40.2]} 17... Qb6+ {[%clk 0:02:25.4]} 18.
Kh1 {[%clk 0:02:36.5]} 18... Qxb2 {[%clk 0:02:18.7]} 19. Rf1 {[%clk 0:01:59.6]}
19... Nh5 {[%clk 0:02:15]} 20. Be7 {[%clk 0:01:47]} 20... Qa3 {[%clk 0:01:49.1]}
21. Nb1 {[%clk 0:01:41]} 21... Qxa2 {[%clk 0:01:36.2]} 22. Bxd6 {[%clk
0:01:41.9]} 22... Be6 {[%clk 0:01:33.7]} 23. Bf3 {[%clk 0:01:37]} 23... Nf6
{[%clk 0:01:28.4]} 24. Qc3 {[%clk 0:01:01.2]} 24... Ng4 {[%clk 0:01:10.8]} 25.
Na3 {[%clk 0:00:41.9]} 25... Bd7 {[%clk 0:00:33.8]} 26. Nc4 {[%clk 0:00:41.2]}
26... Qa4 {[%clk 0:00:31.7]} 27. Bxg4 {[%clk 0:00:27.5]} 27... Bxg4 {[%clk
0:00:32]} 28. Bxe5 {[%clk 0:00:26.6]} 28... Rf8 {[%clk 0:00:27.7]} 29. Ra1
{[%clk 0:00:22.1]} 29... Bxe5 {[%clk 0:00:27.1]} 30. Nxe5 {[%clk 0:00:23]} 30...
Qb5 {[%clk 0:00:22.3]} 31. Nxg4 {[%clk 0:00:24]} 31... Qh5 {[%clk 0:00:23.7]}
32. Nf6+ {[%clk 0:00:24.4]} 32... Rxf6 {[%clk 0:00:23.3]} 33. Qxf6 {[%clk
0:00:26.3]} 33... Qe2 {[%clk 0:00:23.2]} 34. Rf1 {[%clk 0:00:23.7]} 1-0

[Event "*** Titled Tuesday Blitz"]
[Site "Chess.com"]
[Date "2019.01.01"]
[Round "8"]
[White "MikePerelshteyn"]
[Black "Blitzstream"]
[Result "0-1"]
[WhiteElo "2513"]
[BlackElo "2564"]
[TimeControl "180+2"]
[EndTime "14:55:22 PST"]
[Termination "Blitzstream won by resignation"]

1. Nf3 {[%clk 0:03:01.9]} 1... c5 {[%clk 0:02:58.8]} 2. c4 {[%clk 0:03:02.3]}
2... Nc6 {[%clk 0:02:56.5]} 3. g3 {[%clk 0:03:02.2]} 3... Nf6 {[%clk 0:02:55.6]}
4. Bg2 {[%clk 0:03:03.3]} 4... d5 {[%clk 0:02:56.9]} 5. O-O {[%clk 0:03:03.9]}
5... g6 {[%clk 0:02:56.1]} 6. cxd5 {[%clk 0:02:56.3]} 6... Qxd5 {[%clk
0:02:56.7]} 7. Nc3 {[%clk 0:02:55.5]} 7... Qh5 {[%clk 0:02:56.6]} 8. d4 {[%clk
0:02:50.1]} 8... cxd4 {[%clk 0:02:47.4]} 9. Nxd4 {[%clk 0:02:50.8]} 9... Nxd4
{[%clk 0:02:44]} 10. Qxd4 {[%clk 0:02:51.2]} 10... Bg7 {[%clk 0:02:45.2]} 11. h4
{[%clk 0:02:28.3]} 11... O-O {[%clk 0:02:40]} 12. Nd5 {[%clk 0:02:26.7]} 12...
Nxd5 {[%clk 0:02:17.8]} 13. Qxd5 {[%clk 0:02:27.8]} 13... Qxd5 {[%clk
0:02:16.4]} 14. Bxd5 {[%clk 0:02:28]} 14... Rd8 {[%clk 0:02:16.6]} 15. Bf3
{[%clk 0:02:19.9]} 15... Bh3 {[%clk 0:02:10.9]} 16. Re1 {[%clk 0:02:19.8]} 16...
Rd7 {[%clk 0:01:54.7]} 17. g4 {[%clk 0:02:00.5]} 17... h5 {[%clk 0:01:18.6]} 18.
gxh5 {[%clk 0:01:56.2]} 18... gxh5 {[%clk 0:01:19.5]} 19. Bxh5 {[%clk
0:01:56.1]} 19... Rc8 {[%clk 0:01:05.2]} 20. Kh2 {[%clk 0:01:40.8]} 20... Be6
{[%clk 0:00:59.8]} 21. Rg1 {[%clk 0:01:34.9]} 21... Kh7 {[%clk 0:00:59.9]} 22.
Bf3 {[%clk 0:01:31.4]} 22... Be5+ {[%clk 0:00:58.4]} 23. Kh1 {[%clk 0:01:31.4]}
23... Rc4 {[%clk 0:00:57.6]} 24. Bg5 {[%clk 0:01:20.1]} 24... f6 {[%clk
0:00:56.1]} 25. b3 {[%clk 0:01:19.9]} 25... Rb4 {[%clk 0:00:52.2]} 26. a3 {[%clk
0:01:16.9]} 26... Rxb3 {[%clk 0:00:34.6]} 27. Be4+ {[%clk 0:01:10.7]} 27... Kh8
{[%clk 0:00:27.2]} 28. Bh6 {[%clk 0:00:54.9]} 28... Rh3+ {[%clk 0:00:22.2]} 29.
Kg2 {[%clk 0:00:55.2]} 29... Bxa1 {[%clk 0:00:22]} 30. Rxa1 {[%clk 0:00:54.5]}
30... Rxh4 {[%clk 0:00:22.2]} 31. Rh1 {[%clk 0:00:45]} 31... Rxh1 {[%clk
0:00:23]} 32. Kxh1 {[%clk 0:00:45.4]} 32... Bd5 {[%clk 0:00:24.7]} 33. Bxd5
{[%clk 0:00:44.3]} 33... Rxd5 {[%clk 0:00:26.6]} 34. Bf8 {[%clk 0:00:43.5]}
34... Re5 {[%clk 0:00:25.1]} 35. e3 {[%clk 0:00:39.8]} 35... Kg8 {[%clk
0:00:26.2]} 36. Bh6 {[%clk 0:00:40.2]} 36... Rh5+ {[%clk 0:00:21]} 37. Kg2
{[%clk 0:00:40.1]} 37... Rxh6 {[%clk 0:00:22.9]} 38. Kf3 {[%clk 0:00:40.9]}
38... Kf7 {[%clk 0:00:24.7]} 39. Ke4 {[%clk 0:00:41.5]} 39... Rh4+ {[%clk
0:00:25.8]} 40. f4 {[%clk 0:00:42.8]} 40... Rh1 {[%clk 0:00:26.4]} 41. a4 {[%clk
0:00:44.3]} 41... Ra1 {[%clk 0:00:27.6]} 42. Kd3 {[%clk 0:00:44.7]} 42... Rxa4
{[%clk 0:00:28.8]} 0-1

[Event "*** Titled Tuesday Blitz"]
[Site "Chess.com"]
[Date "2019.01.01"]
[Round "8"]
[White "nochewycandy"]
[Black "vovachesss"]
[Result "0-1"]
[WhiteElo "2264"]
[BlackElo "2482"]
[TimeControl "180+2"]
[EndTime "14:55:22 PST"]
[Termination "vovachesss won by resignation"]

1. c4 {[%clk 0:03:01.9]} 1... e6 {[%clk 0:02:55.1]} 2. g3 {[%clk 0:02:59.4]}
2... h5 {[%clk 0:02:54.9]} 3. Nf3 {[%clk 0:02:59.8]} 3... h4 {[%clk 0:02:56]} 4.
Nxh4 {[%clk 0:03:00.7]} 4... Rxh4 {[%clk 0:02:57.4]} 5. gxh4 {[%clk 0:03:02.6]}
5... Qxh4 {[%clk 0:02:58.8]} 6. d4 {[%clk 0:03:02.5]} 6... Nf6 {[%clk
0:02:54.8]} 7. Qd3 {[%clk 0:02:51.2]} 7... Nc6 {[%clk 0:02:41.3]} 8. Be3 {[%clk
0:02:25.2]} 8... Nb4 {[%clk 0:02:32.3]} 9. Qd2 {[%clk 0:02:11.6]} 9... Ng4
{[%clk 0:01:44.1]} 10. Na3 {[%clk 0:02:00.7]} 10... d5 {[%clk 0:01:38.2]} 11. c5
{[%clk 0:01:58.2]} 11... a5 {[%clk 0:01:35.4]} 12. O-O-O {[%clk 0:01:49.9]}
12... Nxa2+ {[%clk 0:01:30.5]} 13. Kb1 {[%clk 0:01:50.8]} 13... Nb4 {[%clk
0:01:32]} 14. h3 {[%clk 0:01:32.4]} 14... Nxf2 {[%clk 0:01:26.1]} 15. Qe1 {[%clk
0:01:30.1]} 15... Qe4+ {[%clk 0:01:22.1]} 16. Ka1 {[%clk 0:01:27.1]} 16... Qxe3
{[%clk 0:01:16.8]} 17. Bg2 {[%clk 0:01:19.4]} 17... Qxa3+ {[%clk 0:01:03.7]} 18.
bxa3 {[%clk 0:01:19.8]} 18... Nc2+ {[%clk 0:01:05]} 19. Kb2 {[%clk 0:01:21.4]}
19... Nxe1 {[%clk 0:01:06.9]} 20. Rdxe1 {[%clk 0:01:21.8]} 20... Nxh1 {[%clk
0:01:08]} 21. Rxh1 {[%clk 0:01:23.7]} 21... e5 {[%clk 0:00:54.8]} 22. e3 {[%clk
0:01:21.8]} 22... c6 {[%clk 0:00:55.7]} 23. h4 {[%clk 0:01:22.3]} 23... Bf5
{[%clk 0:00:56.2]} 24. h5 {[%clk 0:01:23.4]} 24... Be4 {[%clk 0:00:57.5]} 25.
Bxe4 {[%clk 0:01:24]} 25... dxe4 {[%clk 0:00:59.4]} 26. Rh4 {[%clk 0:01:24.5]}
26... exd4 {[%clk 0:00:59]} 27. Rxe4+ {[%clk 0:01:24.5]} 27... Kd7 {[%clk
0:01:00.7]} 28. exd4 {[%clk 0:01:26.3]} 28... Re8 {[%clk 0:01:01.2]} 29. Rf4
{[%clk 0:01:26.3]} 29... Re2+ {[%clk 0:01:02]} 30. Kb3 {[%clk 0:01:27.2]} 30...
Ke6 {[%clk 0:01:03.3]} 31. Ka4 {[%clk 0:01:23.8]} 31... Re3 {[%clk 0:01:04.3]}
32. Kxa5 {[%clk 0:01:19.2]} 32... Rxa3+ {[%clk 0:01:04.4]} 33. Kb6 {[%clk
0:01:21.1]} 33... Rb3+ {[%clk 0:01:05.8]} 34. Kc7 {[%clk 0:01:23]} 34... f5
{[%clk 0:01:02.9]} 35. Rf1 {[%clk 0:01:21.5]} 35... Be7 {[%clk 0:01:02.2]} 36.
Re1+ {[%clk 0:01:20.1]} 36... Kf7 {[%clk 0:01:03.3]} 37. Rf1 {[%clk 0:01:20.6]}
37... Bf6 {[%clk 0:00:59.9]} 38. Rxf5 {[%clk 0:01:20.1]} 38... Ke6 {[%clk
0:01:01.6]} 39. Rf4 {[%clk 0:01:21.1]} 39... Kd5 {[%clk 0:01:02.3]} 40. h6
{[%clk 0:01:21.5]} 40... Bxd4 {[%clk 0:01:00.2]} 41. h7 {[%clk 0:01:19.1]} 41...
Rh3 {[%clk 0:00:57.6]} 42. Kxb7 {[%clk 0:01:12]} 42... Rxh7 {[%clk 0:00:58.6]}
43. Rf5+ {[%clk 0:01:03.6]} 43... Be5 {[%clk 0:00:52]} 44. Rg5 {[%clk 0:01:02]}
44... Rh2 {[%clk 0:00:48]} 45. Rg6 {[%clk 0:00:56]} 45... Rb2+ {[%clk
0:00:47.5]} 46. Ka6 {[%clk 0:00:54.6]} 46... Kxc5 {[%clk 0:00:46.8]} 47. Rg5
{[%clk 0:00:49.4]} 47... Kd5 {[%clk 0:00:47.7]} 48. Rg6 {[%clk 0:00:47.8]} 48...
c5 {[%clk 0:00:48.8]} 0-1

[Event "*** Titled Tuesday Blitz"]
[Site "Chess.com"]
[Date "2019.01.01"]
[Round "8"]
[White "benhal"]
[Black "TheBigBadChessDad"]
[Result "1-0"]
[WhiteElo "2192"]
[BlackElo "2256"]
[TimeControl "180+2"]
[EndTime "14:55:36 PST"]
[Termination "benhal won by resignation"]

1. e4 {[%clk 0:03:01.8]} 1... e5 {[%clk 0:03:01]} 2. Nf3 {[%clk 0:02:54.8]} 2...
Nc6 {[%clk 0:03:02]} 3. Bc4 {[%clk 0:02:54.1]} 3... Bc5 {[%clk 0:03:01.9]} 4.
O-O {[%clk 0:02:53.8]} 4... Nf6 {[%clk 0:03:02.5]} 5. d3 {[%clk 0:02:53.7]} 5...
d6 {[%clk 0:03:02.7]} 6. c3 {[%clk 0:02:54.4]} 6... a6 {[%clk 0:03:03.6]} 7. a4
{[%clk 0:02:53.4]} 7... Ba7 {[%clk 0:03:02.7]} 8. Re1 {[%clk 0:02:51.6]} 8... h6
{[%clk 0:02:47.6]} 9. Nbd2 {[%clk 0:02:33.8]} 9... O-O {[%clk 0:02:47.4]} 10.
Nf1 {[%clk 0:02:30.5]} 10... Be6 {[%clk 0:02:44.8]} 11. Bxe6 {[%clk 0:02:23]}
11... fxe6 {[%clk 0:02:45.8]} 12. Ng3 {[%clk 0:02:18.3]} 12... Ng4 {[%clk
0:02:19.9]} 13. Re2 {[%clk 0:02:16.7]} 13... g5 {[%clk 0:02:16.9]} 14. h3 {[%clk
0:02:12.8]} 14... Nf6 {[%clk 0:02:07.1]} 15. Be3 {[%clk 0:02:08.9]} 15... Qd7
{[%clk 0:01:58]} 16. Bxa7 {[%clk 0:02:07.3]} 16... Rxa7 {[%clk 0:01:59.3]} 17.
d4 {[%clk 0:02:01.9]} 17... exd4 {[%clk 0:01:40.7]} 18. cxd4 {[%clk 0:02:01.9]}
18... Qf7 {[%clk 0:01:31.2]} 19. Ra3 {[%clk 0:01:42.6]} 19... Raa8 {[%clk
0:01:31.2]} 20. Nh2 {[%clk 0:01:32.2]} 20... Nh5 {[%clk 0:01:14.6]} 21. Nxh5
{[%clk 0:01:22.4]} 21... Qxh5 {[%clk 0:01:15.3]} 22. Rd2 {[%clk 0:01:20.9]}
22... Qxd1+ {[%clk 0:01:14.2]} 23. Rxd1 {[%clk 0:01:22.8]} 23... d5 {[%clk
0:01:07]} 24. Ng4 {[%clk 0:00:36.7]} 24... Kg7 {[%clk 0:01:07.6]} 25. exd5
{[%clk 0:00:30.6]} 25... exd5 {[%clk 0:01:08.6]} 26. Ne3 {[%clk 0:00:32]} 26...
Rad8 {[%clk 0:01:03.6]} 27. Rb3 {[%clk 0:00:32.5]} 27... b6 {[%clk 0:00:58.6]}
28. Rc3 {[%clk 0:00:33.2]} 28... Rf6 {[%clk 0:00:55.2]} 29. g3 {[%clk
0:00:33.6]} 29... Rd7 {[%clk 0:00:48.3]} 30. Kg2 {[%clk 0:00:33.9]} 30... Ne7
{[%clk 0:00:34]} 31. b4 {[%clk 0:00:30]} 31... b5 {[%clk 0:00:33.3]} 32. axb5
{[%clk 0:00:29.1]} 32... axb5 {[%clk 0:00:34.5]} 33. Rdc1 {[%clk 0:00:30.2]}
33... c6 {[%clk 0:00:35.9]} 34. Ng4 {[%clk 0:00:29.6]} 34... Re6 {[%clk
0:00:35]} 35. Ne5 {[%clk 0:00:30.4]} 35... Rdd6 {[%clk 0:00:36.4]} 36. Rc5
{[%clk 0:00:28.1]} 36... Kf6 {[%clk 0:00:35.7]} 37. g4 {[%clk 0:00:27.8]} 37...
Rxe5 {[%clk 0:00:36.9]} 38. dxe5+ {[%clk 0:00:28.3]} 38... Kxe5 {[%clk
0:00:38.8]} 39. Re1+ {[%clk 0:00:29.2]} 39... Kf6 {[%clk 0:00:40.1]} 40. Rc3
{[%clk 0:00:29.7]} 40... d4 {[%clk 0:00:41.1]} 41. Rf3+ {[%clk 0:00:30.6]} 41...
Kg6 {[%clk 0:00:37.3]} 42. Rxe7 {[%clk 0:00:31.4]} 42... d3 {[%clk 0:00:38.2]}
43. Re1 {[%clk 0:00:31.8]} 1-0

[Event "*** Titled Tuesday Blitz"]
[Site "Chess.com"]
[Date "2019.01.01"]
[Round "8"]
[White "RajdeepS"]
[Black "Daniela_Movileanu"]
[Result "1/2-1/2"]
[WhiteElo "2494"]
[BlackElo "2502"]
[TimeControl "180+2"]
[EndTime "14:55:42 PST"]
[Termination "Game drawn by agreement"]

1. Nf3 {[%clk 0:03:01.9]} 1... c5 {[%clk 0:02:59.3]} 2. b3 {[%clk 0:02:53.7]}
2... g6 {[%clk 0:02:57.4]} 3. Bb2 {[%clk 0:02:53.8]} 3... Nf6 {[%clk 0:02:58.9]}
4. Bxf6 {[%clk 0:02:55]} 4... exf6 {[%clk 0:03:00.4]} 5. c4 {[%clk 0:02:56.6]}
5... d5 {[%clk 0:02:58.3]} 6. cxd5 {[%clk 0:02:56.6]} 6... Qxd5 {[%clk
0:03:00.2]} 7. Nc3 {[%clk 0:02:57.6]} 7... Qd8 {[%clk 0:03:00.9]} 8. Rc1 {[%clk
0:02:58.7]} 8... Be7 {[%clk 0:03:00.9]} 9. g3 {[%clk 0:02:56.8]} 9... O-O {[%clk
0:03:01.2]} 10. Bg2 {[%clk 0:02:58.3]} 10... Nc6 {[%clk 0:03:02.5]} 11. O-O
{[%clk 0:02:58.4]} 11... Be6 {[%clk 0:02:50.5]} 12. Na4 {[%clk 0:02:48]} 12...
Qa5 {[%clk 0:02:38.4]} 13. Qc2 {[%clk 0:02:48.1]} 13... Nb4 {[%clk 0:02:11.5]}
14. Qb2 {[%clk 0:02:44.6]} 14... c4 {[%clk 0:02:01.5]} 15. Nd4 {[%clk
0:02:35.4]} 15... cxb3 {[%clk 0:01:54.2]} 16. Nxe6 {[%clk 0:02:35.2]} 16... Nxa2
{[%clk 0:01:23.8]} 17. Nxf8 {[%clk 0:02:32.3]} 17... Nxc1 {[%clk 0:01:24.2]} 18.
Rxc1 {[%clk 0:02:25.8]} 18... Qxa4 {[%clk 0:01:22.8]} 19. Nd7 {[%clk 0:02:14.6]}
19... Qxd7 {[%clk 0:01:21.1]} 20. Qxb3 {[%clk 0:02:13]} 20... Rb8 {[%clk
0:01:18.8]} 21. Bd5 {[%clk 0:02:05.1]} 21... Bd8 {[%clk 0:01:12.3]} 22. d4
{[%clk 0:01:36.5]} 22... b5 {[%clk 0:01:10.9]} 23. e3 {[%clk 0:01:30.4]} 23...
a5 {[%clk 0:01:11.3]} 24. Bc6 {[%clk 0:01:30.3]} 24... Qc7 {[%clk 0:01:01]} 25.
Rc5 {[%clk 0:01:07.2]} 25... a4 {[%clk 0:00:54.7]} 26. Qb1 {[%clk 0:01:00.4]}
26... Qa5 {[%clk 0:00:19.8]} 27. Rxb5 {[%clk 0:00:52.1]} 27... Rxb5 {[%clk
0:00:20]} 28. Qxb5 {[%clk 0:00:52.2]} 28... Qxb5 {[%clk 0:00:21]} 29. Bxb5
{[%clk 0:00:52.1]} 29... a3 {[%clk 0:00:22.9]} 30. Bc4 {[%clk 0:00:53.6]} 30...
Kf8 {[%clk 0:00:24.6]} 31. Kf1 {[%clk 0:00:54.8]} 31... Ke7 {[%clk 0:00:26.5]}
32. Ke2 {[%clk 0:00:56.1]} 32... Bc7 {[%clk 0:00:28.4]} 33. Kd3 {[%clk 0:00:57]}
33... Bd6 {[%clk 0:00:30.3]} 34. Kc2 {[%clk 0:00:57.1]} 34... Bb4 {[%clk
0:00:31]} 35. f3 {[%clk 0:00:51.4]} 35... f5 {[%clk 0:00:32.1]} 36. Kb3 {[%clk
0:00:49]} 36... Bd2 {[%clk 0:00:28.1]} 37. Kxa3 {[%clk 0:00:49.1]} 37... Bxe3
{[%clk 0:00:28.2]} 38. d5 {[%clk 0:00:50.2]} 38... Kd6 {[%clk 0:00:29.2]} 39.
Kb3 {[%clk 0:00:50.4]} 39... Bg1 {[%clk 0:00:29.2]} 40. h3 {[%clk 0:00:50.6]}
40... h5 {[%clk 0:00:28.4]} 41. Kc2 {[%clk 0:00:50.3]} 41... Bf2 {[%clk
0:00:27.3]} 42. g4 {[%clk 0:00:51]} 42... hxg4 {[%clk 0:00:27.1]} 43. hxg4
{[%clk 0:00:51.3]} 43... fxg4 {[%clk 0:00:28.1]} 44. fxg4 {[%clk 0:00:52.9]}
44... f5 {[%clk 0:00:27.2]} 45. gxf5 {[%clk 0:00:52.5]} 45... gxf5 {[%clk
0:00:29.1]} 46. Kd3 {[%clk 0:00:54]} 1/2-1/2

[Event "*** Titled Tuesday Blitz"]
[Site "Chess.com"]
[Date "2019.01.01"]
[Round "8"]
[White "Chessialist"]
[Black "BlackBoarder"]
[Result "0-1"]
[WhiteElo "2539"]
[BlackElo "2576"]
[TimeControl "180+2"]
[EndTime "14:55:44 PST"]
[Termination "BlackBoarder won by resignation"]

1. c4 {[%clk 0:03:01.9]} 1... Nf6 {[%clk 0:02:49.6]} 2. Nc3 {[%clk 0:03:02.3]}
2... d5 {[%clk 0:02:50.1]} 3. cxd5 {[%clk 0:03:02.6]} 3... Nxd5 {[%clk 0:02:52]}
4. g3 {[%clk 0:03:02.2]} 4... g6 {[%clk 0:02:52.8]} 5. Bg2 {[%clk 0:03:03.3]}
5... Nxc3 {[%clk 0:02:53]} 6. bxc3 {[%clk 0:03:04]} 6... Bg7 {[%clk 0:02:53.4]}
7. d4 {[%clk 0:03:05.7]} 7... c5 {[%clk 0:02:54]} 8. e3 {[%clk 0:03:07.3]} 8...
O-O {[%clk 0:02:54.5]} 9. Nf3 {[%clk 0:03:07.2]} 9... Nc6 {[%clk 0:02:55.3]} 10.
O-O {[%clk 0:03:08.2]} 10... e5 {[%clk 0:02:50.1]} 11. d5 {[%clk 0:03:07.1]}
11... Ne7 {[%clk 0:02:48.5]} 12. e4 {[%clk 0:03:08.2]} 12... Bg4 {[%clk
0:02:48.2]} 13. h3 {[%clk 0:03:00.6]} 13... Bxf3 {[%clk 0:02:49]} 14. Bxf3
{[%clk 0:03:00.1]} 14... Nc8 {[%clk 0:02:50.2]} 15. c4 {[%clk 0:02:59]} 15...
Nd6 {[%clk 0:02:51.3]} 16. Qd3 {[%clk 0:02:59.8]} 16... b6 {[%clk 0:02:52.2]}
17. a4 {[%clk 0:02:58.9]} 17... a5 {[%clk 0:02:50.8]} 18. Bg2 {[%clk 0:02:56.8]}
18... f5 {[%clk 0:02:49.5]} 19. Rb1 {[%clk 0:02:57.6]} 19... Rb8 {[%clk
0:02:46.8]} 20. Bd2 {[%clk 0:02:56.8]} 20... Qd7 {[%clk 0:02:45.4]} 21. Kh2
{[%clk 0:02:49.5]} 21... Qxa4 {[%clk 0:02:39.2]} 22. Rfc1 {[%clk 0:02:48]} 22...
Qd7 {[%clk 0:02:36.4]} 23. Rf1 {[%clk 0:02:46.7]} 23... Qa7 {[%clk 0:02:13.1]}
24. Bc3 {[%clk 0:02:45.8]} 24... Qa6 {[%clk 0:02:13.4]} 25. f4 {[%clk
0:02:45.6]} 25... Qxc4 {[%clk 0:02:10.5]} 26. Qxc4 {[%clk 0:02:46.8]} 26... Nxc4
{[%clk 0:02:12.4]} 27. exf5 {[%clk 0:02:48.1]} 27... gxf5 {[%clk 0:01:56.2]} 28.
fxe5 {[%clk 0:02:48.5]} 28... Bxe5 {[%clk 0:01:56.5]} 29. Bxe5 {[%clk
0:02:47.6]} 29... Nxe5 {[%clk 0:01:58.4]} 30. Rbe1 {[%clk 0:02:47.4]} 30... Rbe8
{[%clk 0:01:54.1]} 31. d6 {[%clk 0:02:47.4]} 31... Nd7 {[%clk 0:01:06.9]} 32.
Rxe8 {[%clk 0:02:20.8]} 32... Rxe8 {[%clk 0:01:07.5]} 33. Bc6 {[%clk 0:02:22.7]}
33... Rd8 {[%clk 0:01:03.1]} 34. Rxf5 {[%clk 0:02:23.5]} 34... Nb8 {[%clk
0:00:32.3]} 35. Bd5+ {[%clk 0:02:24.3]} 35... Kh8 {[%clk 0:00:33.4]} 36. h4
{[%clk 0:02:05.3]} 36... Rxd6 {[%clk 0:00:21.6]} 37. Rf8+ {[%clk 0:02:04.9]}
37... Kg7 {[%clk 0:00:23.1]} 38. Rxb8 {[%clk 0:02:06.8]} 38... Rxd5 {[%clk
0:00:23.8]} 39. Rxb6 {[%clk 0:02:08.5]} 39... a4 {[%clk 0:00:18.4]} 40. Ra6
{[%clk 0:02:07.1]} 40... Rd4 {[%clk 0:00:19.6]} 41. Kh3 {[%clk 0:02:05.5]} 41...
Rb4 {[%clk 0:00:19.2]} 42. h5 {[%clk 0:02:05.9]} 42... h6 {[%clk 0:00:19.5]} 43.
Rg6+ {[%clk 0:02:04]} 43... Kh7 {[%clk 0:00:20.5]} 44. Rc6 {[%clk 0:02:05.3]}
44... c4 {[%clk 0:00:21.8]} 45. Rc7+ {[%clk 0:02:06.2]} 45... Kh8 {[%clk
0:00:22.5]} 46. Kg4 {[%clk 0:02:06.3]} 46... a3 {[%clk 0:00:23]} 47. Kf5 {[%clk
0:02:03.3]} 47... Ra4 {[%clk 0:00:20.3]} 48. Rc8+ {[%clk 0:01:53]} 48... Kg7
{[%clk 0:00:20.8]} 49. Rc7+ {[%clk 0:01:53]} 49... Kf8 {[%clk 0:00:22.1]} 0-1

[Event "*** Titled Tuesday Blitz"]
[Site "Chess.com"]
[Date "2019.01.01"]
[Round "8"]
[White "vladimirdamjanovic"]
[Black "volcanoexplorer"]
[Result "1-0"]
[WhiteElo "2586"]
[BlackElo "2342"]
[TimeControl "180+2"]
[EndTime "14:55:45 PST"]
[Termination "vladimirdamjanovic won on time"]

1. e4 {[%clk 0:03:01.9]} 1... e5 {[%clk 0:03:00.7]} 2. Bc4 {[%clk 0:03:02.3]}
2... Nf6 {[%clk 0:03:01.5]} 3. d3 {[%clk 0:03:03.5]} 3... c6 {[%clk 0:03:02.1]}
4. Bb3 {[%clk 0:03:04]} 4... d6 {[%clk 0:03:01.4]} 5. Nc3 {[%clk 0:03:03.1]}
5... g6 {[%clk 0:02:59]} 6. f4 {[%clk 0:03:03.4]} 6... Bg7 {[%clk 0:02:52.7]} 7.
fxe5 {[%clk 0:02:55.3]} 7... dxe5 {[%clk 0:02:53.7]} 8. Nf3 {[%clk 0:02:56.8]}
8... Nbd7 {[%clk 0:02:50.1]} 9. Be3 {[%clk 0:02:53]} 9... Qe7 {[%clk 0:02:42.7]}
10. O-O {[%clk 0:02:40.5]} 10... h6 {[%clk 0:02:42.1]} 11. Kh1 {[%clk
0:02:33.6]} 11... O-O {[%clk 0:02:42.4]} 12. Qe1 {[%clk 0:02:15.3]} 12... Nh5
{[%clk 0:02:24.4]} 13. Qf2 {[%clk 0:01:47.8]} 13... Kh7 {[%clk 0:02:20.8]} 14.
Ne2 {[%clk 0:01:44.3]} 14... f5 {[%clk 0:02:14.1]} 15. exf5 {[%clk 0:01:41]}
15... gxf5 {[%clk 0:02:16]} 16. Rae1 {[%clk 0:01:04.6]} 16... f4 {[%clk
0:01:26.3]} 17. Bxf4 {[%clk 0:00:29.6]} 17... Nxf4 {[%clk 0:01:20.8]} 18. Nxf4
{[%clk 0:00:30.5]} 18... Rxf4 {[%clk 0:01:21.7]} 19. Qg3 {[%clk 0:00:25.5]}
19... Qf6 {[%clk 0:01:10.3]} 20. Re2 {[%clk 0:00:16.9]} 20... Nc5 {[%clk
0:01:08.8]} 21. Rfe1 {[%clk 0:00:17]} 21... Nxb3 {[%clk 0:01:03.4]} 22. axb3
{[%clk 0:00:18.9]} 22... Bg4 {[%clk 0:01:02]} 23. Rxe5 {[%clk 0:00:14.6]} 23...
Bxf3 {[%clk 0:01:03.2]} 24. gxf3 {[%clk 0:00:16.2]} 24... Rxf3 {[%clk
0:01:04.1]} 25. Qg2 {[%clk 0:00:14.8]} 25... Rf8 {[%clk 0:01:01.3]} 26. Kg1
{[%clk 0:00:12.9]} 26... Rf2 {[%clk 0:00:51.4]} 27. Qe4+ {[%clk 0:00:12.8]}
27... Kh8 {[%clk 0:00:51.1]} 28. Re8 {[%clk 0:00:08.9]} 28... Qg5+ {[%clk
0:00:18.6]} 29. Kh1 {[%clk 0:00:10]} 29... Rxe8 {[%clk 0:00:20]} 30. Qxe8+
{[%clk 0:00:09.2]} 30... Rf8 {[%clk 0:00:20.8]} 31. Qe4 {[%clk 0:00:09.4]} 31...
Qd5 {[%clk 0:00:19.9]} 32. Qxd5 {[%clk 0:00:09.7]} 32... cxd5 {[%clk 0:00:21.8]}
33. Re7 {[%clk 0:00:10.8]} 33... Rf2 {[%clk 0:00:21.8]} 34. Rc7 {[%clk
0:00:11.7]} 34... Rxc2 {[%clk 0:00:23.1]} 35. Rxc2 {[%clk 0:00:11.7]} 1-0